Workbook

Sheet BSC
A1: INDUSTRIA LICORERA DEL CAUCA
A2: BSC-CUADRO DE MANDO INTEGRAL
A3: PROCESOS

Sheet BSC-CUADRO (hidden)
B1: INDUSTRIA LICORERA DEL CAUCA 2019
B2: BALANCE SCORECARD
B3: Código DOPL03 | D3: Versión 04 | H3: Fecha vigencia Julio 16 de 2018 | M3: Página 1 de 13
A6: MENSUAL | AB6: ANUAL
A7: PROCESOS | B7: INDICADOR | C7: ENE | D7: META | E7: FEB. | F7: META | G7: MAR. | H7: META | I7: ABR. | J7: META | K7: MAY. | L7: META | M7: JUN. | N7: META | O7: JUL. | P7: META | Q7: AGO. | R7: META | S7: SEP. | T7: META | U7: OCT. | V7: META | W7: NOV. | X7: META | Y7: DIC. | Z7: META | AB7: AÑO | AC7: META
A8: PRODUCCION | B8: PLAN DE PRODUCCIÓN | C8: =PRODUCCION!E8 -> 0 | D8: =IF(C8>=80%,1,0) -> 0 | E8: =PRODUCCION!G8 -> 0.03107575758 | F8: =IF(E8>=80%,1,0) -> 0 | G8: =PRODUCCION!I8 -> 0.3195850816 | H8: =IF(G8>=80%,1,0) -> 0 | I8: =PRODUCCION!K8 -> 0.3213352273 | J8: =IF(I8>=80%,1,0) -> 0 | K8: =PRODUCCION!M8 -> 0.3341068509 | L8: =IF(K8>=80%,1,0) -> 0 | M8: =PRODUCCION!O8 -> 0.99804 | N8: =IF(M8>=80%,1,0) -> 1 | O8: =PRODUCCION!Q8 -> 0.9876593137 | P8: =IF(O8>=80%,1,0) -> 1 | Q8: =PRODUCCION!S8 -> 0.8070663068 | R8: =IF(Q8>=80%,1,0) -> 1 | S8: =PRODUCCION!U8 -> 11.66181818 | T8: =IF(S8>=80%,1,0) -> 1 | U8: =PRODUCCION!W8 -> 1 | V8: =IF(U8>=80%,1,0) -> 1 | W8: =PRODUCCION!Y8 -> 1 | X8: =IF(W8>=80%,1,0) -> 1 | Y8: =PRODUCCION!AA8 -> 1 | Z8: =IF(Y8>=80%,1,0) -> 1 | AB8: =PRODUCCION!AB8 -> 1.53839056 | AC8: =IF(AB8>=70%,1,0) -> 1
B9: REDUCIR EL IMPACTO AMBIENTAL EN EL MANEJO DE LOS RESIDUOS DE LA PRODUCCIÓN | C9: =PRODUCCION!E11 ->  | D9: =IF(C9>=1.5%,1,0) ->  | E9: =PRODUCCION!G11 -> 0.01994149196 | F9: =IF(E9>=1.5%,1,0) -> 1 | G9: =PRODUCCION!I11 -> 0.01013843708 | H9: =IF(G9>=1.5%,1,0) -> 0 | I9: =PRODUCCION!K11 -> 0.004236289158 | J9: =IF(I9>=1.5%,1,0) -> 0 | K9: =PRODUCCION!M11 -> 0.006717530474 | L9: =IF(K9>=1.5%,1,0) -> 0 | M9: =PRODUCCION!O11 -> 0.00464911226 | N9: =IF(M9>=1.5%,1,0) -> 0 | O9: =PRODUCCION!Q11 -> 0.004144280521 | P9: =IF(O9>=1.5%,1,0) -> 0 | Q9: =PRODUCCION!S11 -> 0.003225931077 | R9: =IF(Q9>=1.5%,1,0) -> 0 | S9: =PRODUCCION!U11 -> 0.002941482174 | T9: =IF(S9>=1.5%,1,0) -> 0 | U9: =PRODUCCION!W11 -> 0.006730174296 | V9: =IF(U9>=1.5%,1,0) -> 0 | W9: =PRODUCCION!Y11 -> 0.00612745098 | X9: =IF(W9>=1.5%,1,0) -> 0 | Y9: =PRODUCCION!AA11 -> 0.004572841921 | Z9: =IF(Y9>=1.5%,1,0) -> 0
A10: SGC | B10: ESTADO DE ACCIONES CORRECTIVAS | C10: ='GESTION DE CALIDAD'!E7 ->  | D10: =IF(C10>=70%,1,0) ->  | E10: ='GESTION DE CALIDAD'!G7 ->  | F10: =IF(E10>=70%,1,0) ->  | G10: ='GESTION DE CALIDAD'!I7 ->  | H10: =IF(G10>=70%,1,0) ->  | I10: ='GESTION DE CALIDAD'!K7 ->  | J10: =IF(I10>=70%,1,0) ->  | K10: ='GESTION DE CALIDAD'!M7 ->  | L10: =IF(K10>=70%,1,0) ->  | M10: ='GESTION DE CALIDAD'!O7 ->  | N10: =IF(M10>=70%,1,0) ->  | O10: ='GESTION DE CALIDAD'!Q7 ->  | P10: =IF(O10>=70%,1,0) ->  | Q10: ='GESTION DE CALIDAD'!S7 ->  | R10: =IF(Q10>=70%,1,0) ->  | S10: ='GESTION DE CALIDAD'!U7 ->  | T10: =IF(S10>=70%,1,0) ->  | U10: ='GESTION DE CALIDAD'!W7 ->  | V10: =IF(U10>=70%,1,0) ->  | W10: ='GESTION DE CALIDAD'!Y7 ->  | X10: =IF(W10>=70%,1,0) ->  | Y10: ='GESTION DE CALIDAD'!AA7 -> 1 | Z10: =IF(Y10>=70%,1,0) -> 1
B11: AUDITORIA INTERNA | C11: ='GESTION DE CALIDAD'!E9 ->  | D11: =IF(C11>=70%,1,0) ->  | E11: ='GESTION DE CALIDAD'!G9 ->  | F11: =IF(E11>=70%,1,0) ->  | G11: ='GESTION DE CALIDAD'!I9 ->  | H11: =IF(G11>=70%,1,0) ->  | I11: ='GESTION DE CALIDAD'!K9 ->  | J11: =IF(I11>=70%,1,0) ->  | K11: ='GESTION DE CALIDAD'!M9 ->  | L11: =IF(K11>=70%,1,0) ->  | M11: ='GESTION DE CALIDAD'!O9 ->  | N11: =IF(M11>=70%,1,0) ->  | O11: ='GESTION DE CALIDAD'!Q9 ->  | P11: =IF(O11>=70%,1,0) ->  | Q11: ='GESTION DE CALIDAD'!S9 ->  | R11: =IF(Q11>=70%,1,0) ->  | S11: ='GESTION DE CALIDAD'!U9 ->  | T11: =IF(S11>=70%,1,0) ->  | U11: ='GESTION DE CALIDAD'!W9 ->  | V11: =IF(U11>=70%,1,0) ->  | W11: ='GESTION DE CALIDAD'!Y9 ->  | X11: =IF(W11>=70%,1,0) ->  | Y11: ='GESTION DE CALIDAD'!AA9 -> 1 | Z11: =IF(Y11>=70%,1,0) -> 1 | AB11: =SUM(C11,E11,G11,I11,K11,M11,O11,Q11,S11,U11,W11,Y11) ->  | AC11: =IF(AB11>=70%,1,0) -> 
A12: MANTENIMIENTO | B12: % DISPONIBILIDAD | C12: =MANTENIMIENTO!E7 -> 1 | D12: =IF(C12<70%,"malo",IF(C12<79%,"regular",IF(C12<89%,"bueno",IF(C12<95%,"optimo",IF(C12>=95%,"fuera de rango"," "))))) -> fuera de rango | E12: =MANTENIMIENTO!G7 -> 0.6745886654 | F12: =IF(E12<70%,"malo",IF(E12<79%,"regular",IF(E12<89%,"bueno",IF(E12<95%,"optimo",IF(E12>=95%,"fuera de rango"," "))))) -> malo | G12: =MANTENIMIENTO!I7 -> 0.7905723906 | H12: =IF(G12<70%,"malo",IF(G12<79%,"regular",IF(G12<89%,"bueno",IF(G12<95%,"optimo",IF(G12>=95%,"fuera de rango"," "))))) -> bueno | I12: =MANTENIMIENTO!K7 -> 0.7887128484 | J12: =IF(I12<70%,"malo",IF(I12<79%,"regular",IF(I12<89%,"bueno",IF(I12<95%,"optimo",IF(I12>=95%,"fuera de rango"," "))))) -> regular | K12: =MANTENIMIENTO!M7 -> 0.8856635071 | L12: =IF(K12<70%,"malo",IF(K12<79%,"regular",IF(K12<89%,"bueno",IF(K12<95%,"optimo",IF(K12>=95%,"fuera de rango"," "))))) -> bueno | M12: =MANTENIMIENTO!O7 -> 0.8384090409 | N12: =IF(M12<70%,"malo",IF(M12<79%,"regular",IF(M12<89%,"bueno",IF(M12<95%,"optimo",IF(M12>=95%,"fuera de rango"," "))))) -> bueno | O12: =MANTENIMIENTO!Q7 -> 0.910496874 | P12: =IF(O12<70%,"malo",IF(O12<79%,"regular",IF(O12<89%,"bueno",IF(O12<95%,"optimo",IF(O12>=95%,"fuera de rango"," "))))) -> optimo | Q12: =MANTENIMIENTO!S7 -> 0.8712492209 | R12: =IF(Q12<70%,"malo",IF(Q12<79%,"regular",IF(Q12<89%,"bueno",IF(Q12<95%,"optimo",IF(Q12>=95%,"fuera de rango"," "))))) -> bueno | S12: =MANTENIMIENTO!U7 -> 0.8956804599 | T12: =IF(S12<70%,"malo",IF(S12<79%,"regular",IF(S12<89%,"bueno",IF(S12<95%,"optimo",IF(S12>=95%,"fuera de rango"," "))))) -> optimo | U12: =MANTENIMIENTO!W7 -> 0.8241896044 | V12: =IF(U12<70%,"malo",IF(U12<79%,"regular",IF(U12<89%,"bueno",IF(U12<95%,"optimo",IF(U12>=95%,"fuera de rango"," "))))) -> bueno | W12: =MANTENIMIENTO!Y7 -> 0.833146947 | X12: =IF(W12<70%,"malo",IF(W12<79%,"regular",IF(W12<89%,"bueno",IF(W12<95%,"optimo",IF(W12>=95%,"fuera de rango"," "))))) -> bueno | Y12: =MANTENIMIENTO!AA7 -> 0.8910497397 | Z12: =IF(Y12<70%,"malo",IF(Y12<79%,"regular",IF(Y12<89%,"bueno",IF(Y12<95%,"optimo",IF(Y12>=95%,"fuera de rango"," "))))) -> optimo
A13: CONTROL INTERNO | B13: AUDITORIA INTERNA | C13: ='CONTROL INTERNO'!E7 -> 0 | D13: =IF(C13>=80%,1,0) -> 0 | E13: ='CONTROL INTERNO'!G7 -> 0 | F13: =IF(E13>=80%,1,0) -> 0 | G13: ='CONTROL INTERNO'!I7 -> 0 | H13: =IF(G13>=80%,1,0) -> 0 | I13: ='CONTROL INTERNO'!K7 -> 0.3333333333 | J13: =IF(I13>=80%,1,0) -> 0 | K13: ='CONTROL INTERNO'!M7 -> 0.3333333333 | L13: =IF(K13>=80%,1,0) -> 0 | M13: ='CONTROL INTERNO'!O7 -> 0.3333333333 | N13: =IF(M13>=80%,1,0) -> 0 | O13: ='CONTROL INTERNO'!Q7 -> 0 | P13: =IF(O13>=80%,1,0) -> 0 | Q13: ='CONTROL INTERNO'!S7 -> 0 | R13: =IF(Q13>=80%,1,0) -> 0 | S13: ='CONTROL INTERNO'!U7 -> 0 | T13: =IF(S13>=80%,1,0) -> 0 | U13: ='CONTROL INTERNO'!W7 -> 0 | V13: =IF(U13>=80%,1,0) -> 0 | W13: ='CONTROL INTERNO'!Y7 -> 0 | X13: =IF(W13>=80%,1,0) -> 0 | Y13: ='CONTROL INTERNO'!AA7 -> 0 | Z13: =IF(Y13>=80%,1,0) -> 0
A14: ADMINISTRATIVA | B14: ALMACENAMIENTO DE CLIENTES | C14: =ADMINISTRATIVA!E7 -> 0.20284 | D14: =IF(C14<=33%,1,0) -> 1 | E14: =ADMINISTRATIVA!G7 -> 0.1377333333 | F14: =IF(E14<=33%,1,0) -> 1 | G14: =ADMINISTRATIVA!I7 -> 0.1253933333 | H14: =IF(G14<=33%,1,0) -> 1 | I14: =ADMINISTRATIVA!K7 -> 0.10828 | J14: =IF(I14<=33%,1,0) -> 1 | K14: =ADMINISTRATIVA!M7 -> 0.1043533333 | L14: =IF(K14<=33%,1,0) -> 1 | M14: =ADMINISTRATIVA!O7 -> 0.09219333333 | N14: =IF(M14<=33%,1,0) -> 1 | O14: =ADMINISTRATIVA!Q7 -> 0.0606 | P14: =IF(O14<=33%,1,0) -> 1 | Q14: =ADMINISTRATIVA!S7 -> 0.04429 | R14: =IF(Q14<=33%,1,0) -> 1 | S14: =ADMINISTRATIVA!U7 -> 0.03295333333 | T14: =IF(S14<=33%,1,0) -> 1 | U14: =ADMINISTRATIVA!W7 -> 0.02946666667 | V14: =IF(U14<=33%,1,0) -> 1 | W14: =ADMINISTRATIVA!Y7 -> 0.03809 | X14: =IF(W14<=33%,1,0) -> 1 | Y14: =ADMINISTRATIVA!AA7 -> 0.33 | Z14: =IF(Y14<=33%,1,0) -> 1
B15: SGSST | C15: =ADMINISTRATIVA!E9 -> 1 | D15: =IF(C15=100%,1,0) -> 1 | E15: =ADMINISTRATIVA!G9 -> 1 | F15: =IF(E15=100%,1,0) -> 1 | G15: =ADMINISTRATIVA!I9 -> 1 | H15: =IF(G15=100%,1,0) -> 1 | I15: =ADMINISTRATIVA!K9 -> 1 | J15: =IF(I15=100%,1,0) -> 1 | K15: =ADMINISTRATIVA!M9 -> 1 | L15: =IF(K15=100%,1,0) -> 1 | M15: =ADMINISTRATIVA!O9 -> 0.7894736842 | N15: =IF(M15=100%,1,0) -> 0 | O15: =ADMINISTRATIVA!Q9 -> 1 | P15: =IF(O15=100%,1,0) -> 1 | Q15: =ADMINISTRATIVA!S9 -> 1 | R15: =IF(Q15=100%,1,0) -> 1 | S15: =ADMINISTRATIVA!U9 -> 0.8888888889 | T15: =IF(S15=100%,1,0) -> 0 | U15: =ADMINISTRATIVA!W9 -> 1 | V15: =IF(U15=100%,1,0) -> 1 | W15: =ADMINISTRATIVA!Y9 -> 0.8571428571 | X15: =IF(W15=100%,1,0) -> 0 | Y15: =ADMINISTRATIVA!AA9 -> 0.966442953 | Z15: =IF(Y15=100%,1,0) -> 0
A16: TECNOLOGIA DE LA INFORMACION Y LA COMUNICACIÓN | B16: SOPORTE | C16: ='GESTIÓN TECNOLOGICA'!E7 -> 1 | D16: =IF(C16>=100%,1,0) -> 1 | E16: ='GESTIÓN TECNOLOGICA'!G7 -> 1 | F16: =IF(E16>=100%,1,0) -> 1 | G16: ='GESTIÓN TECNOLOGICA'!I7 -> 1 | H16: =IF(G16>=100%,1,0) -> 1 | I16: ='GESTIÓN TECNOLOGICA'!K7 -> 1 | J16: =IF(I16>=100%,1,0) -> 1 | K16: ='GESTIÓN TECNOLOGICA'!M7 -> 1 | L16: =IF(K16<=100%,1,0) -> 1 | M16: ='GESTIÓN TECNOLOGICA'!O7 -> 1 | N16: =IF(M16>=100%,1,0) -> 1 | O16: ='GESTIÓN TECNOLOGICA'!Q7 -> 1 | P16: =IF(O16>=100%,1,0) -> 1 | Q16: ='GESTIÓN TECNOLOGICA'!S7 -> 1 | R16: =IF(Q16>=100%,1,0) -> 1 | S16: ='GESTIÓN TECNOLOGICA'!U7 -> 1 | T16: =IF(S16>=100%,1,0) -> 1 | U16: ='GESTIÓN TECNOLOGICA'!W7 -> 1 | V16: =IF(U16>=100%,1,0) -> 1 | W16: ='GESTIÓN TECNOLOGICA'!Y7 -> 1 | X16: =IF(W16>=100%,1,0) -> 1 | Y16: ='GESTIÓN TECNOLOGICA'!AA7 -> 1 | Z16: =IF(Y16>=100%,1,0) -> 1
A17: COMERCIALIZACION | B17: VENTAS | C17: =COMERCIALIZACIÓN!E7 -> 0 | D17: =IF(C17>=40%,1,0) -> 0 | E17: =COMERCIALIZACIÓN!G7 -> 0.0093996875 | F17: =IF(E17>=40%,1,0) -> 0 | G17: =COMERCIALIZACIÓN!I7 -> 0.037306875 | H17: =IF(G17>=40%,1,0) -> 0 | I17: =COMERCIALIZACIÓN!K7 -> 0.0952175 | J17: =IF(I17>=40%,1,0) -> 0 | K17: =COMERCIALIZACIÓN!M7 -> 0.16313875 | L17: =IF(K17>=40%,1,0) -> 0 | M17: =COMERCIALIZACIÓN!O7 -> 0.2476221875 | N17: =IF(M17>=100%,1,0) -> 0 | O17: =COMERCIALIZACIÓN!Q7 -> 0.33286875 | P17: =IF(O17>=100%,1,0) -> 0 | Q17: =COMERCIALIZACIÓN!S7 -> 0.4226215625 | R17: =IF(Q17>=100%,1,0) -> 0 | S17: =COMERCIALIZACIÓN!U7 -> 0.4855034375 | T17: =IF(S17>=100%,1,0) -> 0 | U17: =COMERCIALIZACIÓN!W7 -> 0.5877953125 | V17: =IF(U17>=100%,1,0) -> 0 | W17: =COMERCIALIZACIÓN!Y7 -> 0.6790696875 | X17: =IF(W17>=100%,1,0) -> 0 | Y17: =COMERCIALIZACIÓN!AA7 -> 1.001654688 | Z17: =IF(Y17>=100%,1,0) -> 1 | AB17: =SUM(C17,E17,G17,I17,K17,M17,O17,Q17,S17,U17,W17,Y17) -> 4.062198438 | AC17: =IF(AB17>=100%,1,0) -> 1
A18: JURIDICA | B18: CONTRATOS OPORTUNOS | C18: =JURIDICA!E7 -> 1 | D18: =IF(C18>=100%,1,0) -> 1 | E18: =JURIDICA!G7 -> 1 | F18: =IF(E18>=100%,1,0) -> 1 | G18: =JURIDICA!I7 -> 1 | H18: =IF(G18>=100%,1,0) -> 1 | I18: =JURIDICA!K7 -> 1 | J18: =IF(I18>=100%,1,0) -> 1 | K18: =JURIDICA!M7 -> 1 | L18: =IF(K18>=100%,1,0) -> 1 | M18: =JURIDICA!O7 -> 1 | N18: =IF(M18>=100%,1,0) -> 1 | O18: =JURIDICA!Q7 -> 1 | P18: =IF(O18>=100%,1,0) -> 1 | Q18: =JURIDICA!S7 -> 1 | R18: =IF(Q18>=100%,1,0) -> 1 | S18: =JURIDICA!U7 -> 1 | T18: =IF(S18>=100%,1,0) -> 1 | U18: =JURIDICA!W7 -> 1 | V18: =IF(U18>=100%,1,0) -> 1 | W18: =JURIDICA!Y7 -> 1 | X18: =IF(W18>=100%,1,0) -> 1 | Y18: =JURIDICA!AA7 -> 1 | Z18: =IF(Y18>=100%,1,0) -> 1
A19: FINANCIERA | B19: MARGEN OPERACIONAL | C19: =FINANCIERA!E7 ->  | D19: =IF(C19>=17%,1,0) ->  | E19: =FINANCIERA!G7 -> 4.798839644 | F19: =IF(E19>=17%,1,0) -> 1 | G19: =FINANCIERA!I7 -> 1.366824058 | H19: =IF(G19>=17%,1,0) -> 1 | I19: =FINANCIERA!K7 -> 0.3728653723 | J19: =IF(I19>=17%,1,0) -> 1 | K19: =FINANCIERA!M7 -> 0.06971558942 | L19: =IF(K19>=17%,1,0) -> 0 | M19: =FINANCIERA!O7 -> -0.01692271654 | N19: =IF(M19>=17%,1,0) -> 0 | O19: =FINANCIERA!Q7 -> 0.03442780681 | P19: =IF(O19>=17%,1,0) -> 0 | Q19: =FINANCIERA!S7 -> 0.07140994075 | R19: =IF(Q19>=17%,1,0) -> 0 | S19: =FINANCIERA!U7 -> 0.1068835593 | T19: =IF(S19>=17%,1,0) -> 0 | U19: =FINANCIERA!W7 -> 0.1492861055 | V19: =IF(U19>=17%,1,0) -> 0 | W19: =FINANCIERA!Y7 -> 0.1761296811 | X19: =IF(W19>=17%,1,0) -> 1 | Y19: =FINANCIERA!AA7 -> 0.2607578157 | Z19: =IF(Y19>=17%,1,0) -> 1
A20: CONTROL DE CALIDAD | B20: RECLAMOS ATENDIDOS | C20: ='CONTROL DE CALIDAD'!E7 -> 1 | D20: =IF(C20=100%,1,0) -> 1 | E20: ='CONTROL DE CALIDAD'!G7 -> 1 | F20: =IF(E20=100%,1,0) -> 1 | G20: ='CONTROL DE CALIDAD'!I7 -> 1 | H20: =IF(G20=100%,1,0) -> 1 | I20: ='CONTROL DE CALIDAD'!K7 -> 1 | J20: =IF(I20=100%,1,0) -> 1 | K20: ='CONTROL DE CALIDAD'!M7 -> 1 | L20: =IF(K20=100%,1,0) -> 1 | M20: ='CONTROL DE CALIDAD'!O7 -> 1 | N20: =IF(M20=100%,1,0) -> 1 | O20: ='CONTROL DE CALIDAD'!Q7 -> 1 | P20: =IF(O20=100%,1,0) -> 1 | Q20: ='CONTROL DE CALIDAD'!S7 ->  | R20: =IF(Q20=100%,1,0) ->  | S20: ='CONTROL DE CALIDAD'!U7 -> 1 | T20: =IF(S20=100%,1,0) -> 1 | U20: ='CONTROL DE CALIDAD'!W7 -> 1 | V20: =IF(U20=100%,1,0) -> 1 | W20: ='CONTROL DE CALIDAD'!Y7 -> 1 | X20: =IF(W20=100%,1,0) -> 1 | Y20: ='CONTROL DE CALIDAD'!AA7 -> 1 | Z20: =IF(Y20=100%,1,0) -> 1
B21: PRODUCTOS NO CONFORMES | C21: ='CONTROL DE CALIDAD'!E10 -> 0 | D21: =IF(C21<=3%,1,0) -> 1 | E21: ='CONTROL DE CALIDAD'!G10 -> 0.07672316384 | F21: =IF(E21<=3%,1,0) -> 0 | G21: ='CONTROL DE CALIDAD'!I10 -> 0.009784755737 | H21: =IF(G21<=3%,1,0) -> 1 | I21: ='CONTROL DE CALIDAD'!K10 -> 0.008987181877 | J21: =IF(I21<=3%,1,0) -> 1 | K21: ='CONTROL DE CALIDAD'!M10 -> 0.003183875382 | L21: =IF(K21<=3%,1,0) -> 1 | M21: ='CONTROL DE CALIDAD'!O10 -> 0.002144274743 | N21: =IF(M21<=3%,1,0) -> 1 | O21: ='CONTROL DE CALIDAD'!Q10 -> 0.002847066345 | P21: =IF(O21<=3%,1,0) -> 1 | Q21: ='CONTROL DE CALIDAD'!S10 -> 0.002480186222 | R21: =IF(Q21<=3%,1,0) -> 1 | S21: ='CONTROL DE CALIDAD'!U10 -> 0.001590248209 | T21: =IF(S21<=3%,1,0) -> 1 | U21: ='CONTROL DE CALIDAD'!W10 -> 0.002025499979 | V21: =IF(U21<=3%,1,0) -> 1 | W21: ='CONTROL DE CALIDAD'!Y10 -> 0.008986060992 | X21: =IF(W21<=3%,1,0) -> 1 | Y21: ='CONTROL DE CALIDAD'!AA10 -> 0.003073159508 | Z21: =IF(Y21<=3%,1,0) -> 1
A23: BIMESTRAL
A24: PROCESOS | B24: INDICADOR | C24: 1 BIMESTRE | D24: META | E24: 2 BIMESTRE | F24: META | G24: 3 BIMESTRE | H24: META | I24: 4 BIMESTRE | J24: META | K24: 5 BIMESTRE | L24: META | M24: 6 BIMESTRE | N24: META
A25: CONTROL INTERNO | B25: ENTES EXTERNOS | C25: ='CONTROL INTERNO'!E11 -> 1 | D25: =IF(C25=100%,1,0) -> 1 | E25: ='CONTROL INTERNO'!G11 -> 1 | F25: =IF(E25=100%,1,0) -> 1 | G25: ='CONTROL INTERNO'!I11 ->  | H25: =IF(G25=100%,1,0) ->  | I25: ='CONTROL INTERNO'!K11 -> 1 | J25: =IF(I25=100%,1,0) -> 1 | K25: ='CONTROL INTERNO'!M15 -> 1 | L25: =IF(K25=100%,1,0) -> 1 | M25: ='CONTROL INTERNO'!O15 -> 1 | N25: =IF(M25=100%,1,0) -> 1
B26: ENTES EXTERNOS | C26: ='CONTROL INTERNO'!E12 -> 0 | D26: =IF(C26=100%,1,0) -> 0 | E26: ='CONTROL INTERNO'!G12 -> 0 | F26: =IF(E26=100%,1,0) -> 0 | G26: ='CONTROL INTERNO'!I12 -> 0 | H26: =IF(G26=100%,1,0) -> 0 | I26: ='CONTROL INTERNO'!K12 -> 0 | J26: =IF(I26=100%,1,0) -> 0 | K26: ='CONTROL INTERNO'!M16 -> 0 | L26: =IF(K26=100%,1,0) -> 0 | M26: ='CONTROL INTERNO'!O16 -> 0 | N26: =IF(M26=100%,1,0) -> 0
B27: SIA | C27: ='CONTROL INTERNO'!E15 -> 1 | D27: 1 | E27: ='CONTROL INTERNO'!G15 -> 1 | F27: 1 | G27: ='CONTROL INTERNO'!I15 -> 1 | H27: 1 | I27: ='CONTROL INTERNO'!K15 -> 1 | J27: 1 | K27: ='CONTROL INTERNO'!M15 -> 1 | L27: 1 | M27: ='CONTROL INTERNO'!O15 -> 1 | N27: 1
A29: SEMESTRAL | G29: ANUAL
A30: PROCESOS | B30: INDICADOR | C30: 1 SEMESTRE | D30: META | E30: 2 SEMESTRE | F30: META | G30: AÑO | H30: META
A31: ADMINISTRATIVA | B31: CAPACITACION | C31: =ADMINISTRATIVA!N11 -> 0.5 | D31: =IF(C31>=50%,1,0) -> 1 | E31: =ADMINISTRATIVA!Z11 -> 0.3235294118 | F31: =IF(E31>=50%,1,0) -> 0 | G31: =IF(SUM(C31,E31)>=100%,100%,SUM(C31,E31)) -> 0.8235294118 | H31: =IF(G31=100%,1,0) -> 0
A32: PLANEACIÓN | B32: PROYECTOS | C32: =PLANEACION!E7 -> 1 | D32: =IF(C32>=90%,1,0) -> 1 | E32: =PLANEACION!G7 -> 1 | F32: =IF(E32>=90%,1,0) -> 1 | G32: =AVERAGE(C32,E32) -> 1 | H32: =IF(G32>=90%,1,0) -> 1
B33: FORMULACION PLAN ESTRATEGICO 2019-2022 | C33: =PLANEACION!E9 -> 1 | D33: =IF(C33>=50%,1,0) -> 1 | E33: =PLANEACION!G9 -> 1 | F33: =IF(E33>=50%,1,0) -> 1 | G33: =IF(SUM(C33,E33)>=100%,100%,SUM(C33,E33)) -> 1 | H33: =IF(G33=100%,1,0) -> 1

Sheet ANALISIS
C2: AREA | D2: BSC ACTUALIZADO A DICIEMBRE | E2: ANALISIS
C3: PLANEACIÓN | D3: OK | E3: Se realizó el Plan de Acción 2019 con su respectivos seguimientos trimestrales, así mismo se construyó entre todas las áreas de la empresa el Plan estratégico 2019-2022 , lo cual da un cumplimiento del 100% en sus indicadores
C4: CONTROL INTERNO | D4: OK | E4: El área cuenta con una programación anual de los informes de ley y auditorias que deben presentar, por lo tanto los respectivos informes y auditorias se cargan y generan en la fecha indicada, al igual todos los planes de mejoramiento y los informes a entes externos se cumplieron en un 100%
C5: PRODUCCION | D5: OK | E5: Los indicadores se cumplen con satisfacción en fechas de bajas ventas el indicador de producción es bajo, pero acorde al plan anual de producción, ya que el mayor porcentaje se ejecuta a final de año tal y como se aprecia en el BSC se cumplió a satisfacción.
C6: CONTROL DE CALIDAD | D6: OK | E6: Los indicadores se cumplen con satisfacción a la fecha, es de resaltar que el indicador de reclamos y de producto no conforme son minimos y de casi un 0%
C7: FINANCIERA | D7: OK | E7: el margen operacional se empezó a ver en forma positiva desde el mes de agosto de 2019, este indicador donde tuvo en mejor comportamiento como es natural en el mes de diciembre, ya que las ventas se concentran en mas de un 30%, lo que nos indica que el negocio es muy lucrativo.
C8: ADMINISTRATIVA | D8: OK | E8: Se cumple con los tiempos maximos de bodegaje o mas exactamente con el maximo de cajas permitido para almacenamiento de producto ya facturado por los clientes en cada mes, pero como se puede apreciar solo se tuvo prodcuto de los distribuidores durante el primer trimestre.
E9: las actividades planeadas para el sistema de Gestión y seguridad en el trabajo se cumplieron en un 97% debido a No se cumplió con el 100% porque no conto con un Profesional de la Psicología para llevar a cabo la bateria de Riesgo Psicosocial. No se pudo terminar lo del Plan de Emergencias y faltó el plan de mejoramiento para analisis de ausentismo laboral. Los cuales se incluiran en el Plan de Seguridad y Salud en el tarbajo (SG-SST) de la vigencia 2020.
E10: A 31 de diciembre de 2019, se cumplió parcialmente con el Plan de Capacitación con un porcentaje del 82% , de una meta del 100%. No se cumplió el 100%, por cuanto hubo necesidades de capacitación que no se conto en nuetro medio como llevarlas a cabo. En caso de requerirse se incluirán en el Plan de Capacitación y Formacion 2020.
C11: JURIDICA | D11: OK | E11: en la división Juridica se cumple a satisfacción con el indicador para llevar a cabo la contratción de la empresa y todo los contratos solicitados por la administración se realizaron durante el año 2019
C12: COMERCIALIZACION | D12: OK | E12: uno de los indicadores mas importantes para la empresa como es el de ventas se cumplió en un 100%, los reclamos en cuanto al producto se respondieron en su totalidad y son minimos como se mencionó anteriormente en el BSC de Control de Calidad. En cuanto a la consumidores satisfechos se realizaron dos encuesta en el año que están por encima de la meta del 80%, cumpliendo con el buen servicio al cliente y resolviendo las peticiones, quejas y reclamos en los tiempos adecuados.
C19: GESTIÓN TECNOLOGICA | D19: OK | E19: se cumple con todos los requerimientos de los funcionarios para soporte tecnico de los equipo y el mantenimiento a los mismo según el indicador del año 2019 que se cumple en un 100%

Sheet PLANEACION
B1: INDUSTRIA LICORERA DEL CAUCA 2019
B2: BALANCE SCORECARD
B3: Código DOPL03 | C3: Versión 04 | D3: Fecha vigencia Julio 16 de 2018 | F3: Página 12 de 13
A5: PLANEACIÓN
A6: NOMBRE | B6: FORMULA | C6: META | D6: 1S | E6: % | F6: 2S | G6: %
A7: PROYECTOS | B7: Número de Planes Ejecutados | C7: >=90% | D7: 3 | E7: =D7/D8 -> 1 | F7: 3 | G7: =F7/F8 -> 1
B8: Número de Planes Elaborados | D8: 3 | F8: 3
A9: FORMULACION PLAN ESTRATEGICO 2019-2022 | B9: Avances | C9: 1 | D9: 1 | E9: =D9/D10 -> 1 | F9: 1 | G9: =F9/F10 -> 1
D10: 1 | F10: 1
A12: RESPONSABLE | B12: Jefe División planeación.

Sheet ADMINISTRATIVA
B1: INDUSTRIA LICORERA DEL CAUCA 2019
B2: BALANCE SCORECARD
B3: Código DOPL03 | D3: Versión 04 | J3: Fecha vigencia Julio 16 de 2018 | P3: Página 3 de 15
A5: GESTIÓN DE CALIDAD
A6: NOMBRE | B6: FORMULA | C6: META | D6: Ene | E6: % | F6: Feb | G6: % | H6: Mar | I6: % | J6: Abr | K6: % | L6: May | M6: % | N6: Jun | O6: % | P6: Jul | Q6: % | R6: Ago | S6: % | T6: Sep | U6: % | V6: Oct | W6: % | X6: Nov | Y6: % | Z6: Dic | AA6: %
A7: ALMACENAMIENTO CLIENTES | B7: uds Cliente Bodega | C7: <=33% | D7: 182556 | E7: =D7/D8 -> 0.20284 | F7: 123960 | G7: =F7/F8 -> 0.1377333333 | H7: 112854 | I7: =H7/H8 -> 0.1253933333 | J7: 97452 | K7: =J7/J8 -> 0.10828 | L7: 93918 | M7: =L7/L8 -> 0.1043533333 | N7: 82974 | O7: =N7/N8 -> 0.09219333333 | P7: 54540 | Q7: =P7/P8 -> 0.0606 | R7: 39861 | S7: =R7/R8 -> 0.04429 | T7: 29658 | U7: =T7/T8 -> 0.03295333333 | V7: 26520 | W7: =V7/V8 -> 0.02946666667 | X7: 34281 | Y7: =X7/X8 -> 0.03809 | Z7: 297000 | AA7: =Z7/Z8 -> 0.33
B8: # uds Bodega | D8: 900000 | F8: 900000 | H8: 900000 | J8: 900000 | L8: 900000 | N8: 900000 | P8: 900000 | R8: 900000 | T8: 900000 | V8: 900000 | X8: 900000 | Z8: 900000
A9: SGSST | B9: Actividades del SGSST ejecutadas | C9: 1 | D9: 5 | E9: =D9/D10 -> 1 | F9: 5 | G9: =F9/F10 -> 1 | H9: 9 | I9: =H9/H10 -> 1 | J9: 7 | K9: =J9/J10 -> 1 | L9: 21 | M9: =L9/L10 -> 1 | N9: 15 | O9: =N9/N10 -> 0.7894736842 | P9: 8 | Q9: =P9/P10 -> 1 | R9: 16 | S9: =R9/R10 -> 1 | T9: 16 | U9: =T9/T10 -> 0.8888888889 | V9: 15 | W9: =V9/V10 -> 1 | X9: 12 | Y9: =X9/X10 -> 0.8571428571 | Z9: 15 | AA9: =(Z9+X9+V9+T9+R9+P9+N9+L9+J9+H9+F9+D9)/(D10+F10+J10+L10+N10+P10+R10+T10+V10+X10+Z10) -> 0.966442953
B10: Actividades del SGSST programadas | D10: 5 | F10: 5 | H10: 9 | J10: 7 | L10: 21 | N10: 19 | P10: 8 | R10: 16 | T10: 18 | V10: 15 | X10: 14 | Z10: 21
A11: CAPACITACION | B11: Total eventos de capacitación y formación realizados | C11: 1 | D11: 17 | N11: =D11/D12 -> 0.5 | P11: 11 | Z11: =P11/P12 -> 0.3235294118
B12: Total eventos de capacitación y formación programados | D12: 34 | P12: 34
A14: RESPONSABLE | B14: Jefe division Administrativa

Sheet PRODUCCION
B1: INDUSTRIA LICORERA DEL CAUCA 2019
B2: BALANCE SCORECARD
B3: Código DOPL03 | D3: Versión 04 | I3: Fecha vigencia Julio 16 de 2018 | N3: Página 2 de 13
A6: PRODUCCIÓN
A7: NOMBRE | B7: FORMULA | C7: META | D7: Ene | E7: % | F7: Feb | G7: % | H7: Mar | I7: % | J7: Abr | K7: % | L7: May | M7: % | N7: Jun | O7: % | P7: Jul | Q7: % | R7: Ago | S7: % | T7: Sep | U7: % | V7: Oct | W7: % | X7: Nov | Y7: % | Z7: Dic | AA7: % | AB7: Año
A8: PRODUCION | B8: Total Unidades producidas | C8: 1 | D8: 0 | E8: =D8/D$9 -> 0 | F8: 20510 | G8: =F8/F$9 -> 0.03107575758 | H8: 137102 | I8: =H8/H$9 -> 0.3195850816 | J8: 135732 | K8: =J8/J$9 -> 0.3213352273 | L8: =(6331+11513+1161)*12 -> 228060 | M8: =L8/L$9 -> 0.3341068509 | N8: =(13679+2230+9042)*12 -> 299412 | O8: =N8/N$9 -> 0.99804 | P8: =((11433+9563+12570)*12)+(5769*14) -> 483558 | Q8: =P8/P$9 -> 0.9876593137 | R8: =(5888+24310)*12 -> 362376 | S8: =R8/R$9 -> 0.8070663068 | T8: =(6446+14363+11261)*12 -> 384840 | U8: =T8/T$9 -> 11.66181818 | V8: 342636 | W8: =V8/V$9 -> 1 | X8: =(13820+772+9276)*12 -> 286416 | Y8: =X8/X$9 -> 1 | Z8: 417246 | AA8: =Z8/Z$9 -> 1 | AB8: =AVERAGE(E8,G8,I8,K8,M8,O8,Q8,S8,U8,W8,Y8,AA8) -> 1.53839056
B9: Total de Unidades Programadas | D9: 11200 | F9: 660000 | H9: 429000 | J9: 422400 | L9: 682596 | N9: 300000 | P9: =40800*12 -> 489600 | R9: =(29500+7917)*12 -> 449004 | T9: =2750*12 -> 33000 | V9: 342636 | X9: 286416 | Z9: 417246
A11: REDUCIR EL IMPACTO AMBIENTAL EN EL MANEJO DE LOS RESIDUOS DE LA PRODUCCIÓN | B11: Total de Bajas (Etiqueta, Tapa, Cartón) Año Actual | C11: <1,5% | D11: 15 | E11: =D11/D12 ->  | F11: =41+309+28+31 -> 409 | G11: =F11/F12 -> 0.01994149196 | H11: =6+28+64+81+197+592+5+11+15+34+18+292+47 -> 1390 | I11: =H11/H12 -> 0.01013843708 | J11: =117+144+140+53+49+1+7+64 -> 575 | K11: =J11/J12 -> 0.004236289158 | L11: =235+12+413+472+54+63+54+8+56+11+101+53 -> 1532 | M11: =L11/L12 -> 0.006717530474 | N11: =115+97+474+222+102+65+49+5+22+211+30 -> 1392 | O11: =N11/N12 -> 0.00464911226 | P11: =202+92+26+384+255+147+342+71+32+39+26+282+71+35 -> 2004 | Q11: =P11/P12 -> 0.004144280521 | R11: =247+450+166+51+92+43+120 -> 1169 | S11: =R11/R12 -> 0.003225931077 | T11: =156+81+295+138+112+50+83+45+109+63 -> 1132 | U11: =T11/T12 -> 0.002941482174 | V11: =156+10+1521+128+99+11+36+29+40+265+11 -> 2306 | W11: =V11/V12 -> 0.006730174296 | X11: =23+253+20+748+42+273+5+82+2+34+177+96 -> 1755 | Y11: =X11/X12 -> 0.00612745098 | Z11: =296+37+3+3+161+28+404+34+462+144+57+98+1+40+5+39+87+9 -> 1908 | AA11: =Z11/Z12 -> 0.004572841921
B12: Total Unidades Producidas | D12: 0 | F12: =F8 -> 20510 | H12: =H8 -> 137102 | J12: =J8 -> 135732 | L12: =L8 -> 228060 | N12: =N8 -> 299412 | P12: =P8 -> 483558 | R12: =R8 -> 362376 | T12: =T8 -> 384840 | V12: =V8 -> 342636 | X12: =X8 -> 286416 | Z12: =Z8 -> 417246
A15: RESPONSABLE | B15: Jefe División Producción

Sheet GESTION DE CALIDAD (hidden)
B1: INDUSTRIA LICORERA DEL CAUCA 2019
B2: BALANCE SCORECARD
B3: Código DOPL03 | D3: Versión 04 | J3: Fecha vigencia Julio 16 de 2018 | P3: Página 3 de 15
A5: GESTIÓN DE CALIDAD
A6: NOMBRE | B6: FORMULA | C6: META | D6: Ene | E6: % | F6: Feb | G6: % | H6: Mar | I6: % | J6: Abr | K6: % | L6: May | M6: % | N6: Jun | O6: % | P6: Jul | Q6: % | R6: Ago | S6: % | T6: Sep | U6: % | V6: Oct | W6: % | X6: Nov | Y6: % | Z6: Dic | AA6: %
A7: ESTADO DE ACCIONES CORRECTIVAS | B7: No conformidades de auditoria interna cerradas / Total no conformidades de auditoria interna | C7: >=70% | D7: 0 | E7: =D7/D8 ->  | F7: 0 | G7: =F7/F8 ->  | H7: 0 | I7: =H7/H8 ->  | J7: 0 | K7: =J7/J8 ->  | L7: 0 | M7: =L7/L8 ->  | N7: 0 | O7: =N7/N8 ->  | P7: 0 | Q7: =P7/P8 ->  | R7: 0 | S7: =R7/R8 ->  | T7: 0 | U7: =T7/T8 ->  | V7: 0 | W7: =V7/V8 ->  | X7: 0 | Y7: =X7/X8 ->  | Z7: 52 | AA7: =Z7/Z8 -> 1
D8: 0 | F8: 0 | H8: 0 | J8: 0 | L8: 0 | N8: 0 | P8: 0 | R8: 0 | T8: 0 | V8: 0 | X8: 0 | Z8: 52
A9: AUDITORIA INTERNA | B9: Auditoria interna realizadas/Total auditorías internas programadas | D9: 0 | E9: =D9/D10 ->  | F9: 0 | G9: =F9/F10 ->  | H9: 0 | I9: =H9/H10 ->  | J9: 3 | K9: =J9/J10 ->  | L9: 5 | M9: =L9/L10 ->  | N9: 2 | O9: =N9/N10 ->  | P9: 2 | Q9: =P9/P10 ->  | R9: 0 | S9: =R9/R10 ->  | T9: 0 | U9: =T9/T10 ->  | V9: 0 | W9: =V9/V10 ->  | X9: 0 | Y9: =X9/X10 ->  | Z9: 2 | AA9: =Z9/Z10 -> 1
D10: 0 | F10: 0 | H10: 0 | J10: 0 | L10: 0 | N10: 0 | P10: 0 | R10: 0 | T10: 0 | V10: 0 | X10: 0 | Z10: 2
A12: RESPONSABLE | B12: Representante de la Dirección Coordinador de Calidad

Sheet COMUNICACION (hidden)
B1: INDUSTRIA LICORERA DEL CAUCA 2019
B2: BALANCE SCORECARD
B3: Código DOPL03 | D3: Versión 04 | J3: Fecha vigencia Julio 16 de 2018 | P3: Página 3 de 15
A5: GESTIÓN DE CALIDAD
A6: NOMBRE | B6: FORMULA | C6: META | D6: Ene | E6: % | F6: Feb | G6: % | H6: Mar | I6: % | J6: Abr | K6: % | L6: May | M6: % | N6: Jun | O6: % | P6: Jul | Q6: % | R6: Ago | S6: % | T6: Sep | U6: % | V6: Oct | W6: % | X6: Nov | Y6: % | Z6: Dic | AA6: %
D7: 10 | E7: =D7/D8 -> 0.3333333333 | G7: =F7/F8 ->  | I7: =H7/H8 ->  | K7: =J7/J8 ->  | M7: =L7/L8 ->  | O7: =N7/N8 ->  | Q7: =P7/P8 ->  | S7: =R7/R8 ->  | U7: =T7/T8 ->  | W7: =V7/V8 ->  | Y7: =X7/X8 ->  | AA7: =Z7/Z8 -> 
D8: 30
D9: 0 | E9: =D9/D10 -> 0 | F9: 0 | G9: =F9/F10 -> 0 | H9: 0 | I9: =H9/H10 -> 0 | J9: 0 | K9: =J9/J10 -> 0 | L9: 0 | M9: =L9/L10 -> 0 | N9: 6 | O9: =N9/N10 -> 0.4615384615 | Q9: =P9/P10 -> 0 | S9: =R9/R10 -> 0 | U9: =T9/T10 -> 0 | W9: =V9/V10 -> 0 | Y9: =X9/X10 -> 0 | AA9: =Z9/Z10 -> 0
D10: 13 | F10: 13 | H10: 13 | J10: 13 | L10: 13 | N10: 13 | P10: 13 | R10: 13 | T10: 13 | V10: 13 | X10: 13 | Z10: 13
A12: RESPONSABLE

Sheet MANTENIMIENTO (hidden)
B1: INDUSTRIA LICORERA DEL CAUCA 2019
B2: BALANCE SCORECARD
B3: Código DOPL03 | D3: Versión 04 | J3: Fecha vigencia Julio 16 de 2018 | Q3: Página 4 de 13
A5: MANTENIMIENTO
A6: NOMBRE | B6: FORMULA | C6: META | D6: Ene | E6: % | F6: Feb | G6: % | H6: Mar | I6: % | J6: Abr | K6: % | L6: May | M6: % | N6: Jun | O6: % | P6: jul | Q6: % | R6: Ago | S6: % | T6: Sep | U6: % | V6: Oct | W6: % | X6: Nov | Y6: % | Z6: Dic | AA6: %
A7: % DISPONIBILIDAD | B7: Tiempo Total de Operación | C7: 69% o menor:Malo 70% - 79% : Regular 80% - 89% : Bueno 90% - 94% : Optimo 95% - 100% : Fuera de rango posible | D7: 1 | E7: =D7/D8 -> 1 | F7: 1845 | G7: =F7/F8 -> 0.6745886654 | H7: 5870 | I7: =H7/H8 -> 0.7905723906 | J7: 6820 | K7: =J7/J8 -> 0.7887128484 | L7: 11960 | M7: =L7/L8 -> 0.8856635071 | N7: 11425 | O7: =N7/N8 -> 0.8384090409 | P7: 13835 | Q7: =P7/P8 -> 0.910496874 | R7: 9785 | S7: =R7/R8 -> 0.8712492209 | T7: 11840 | U7: =T7/T8 -> 0.8956804599 | V7: 13145 | W7: =V7/V8 -> 0.8241896044 | X7: 11175 | Y7: =X7/X8 -> 0.833146947 | Z7: 12325 | AA7: =Z7/Z8 -> 0.8910497397
B8: Tiempo de Operación + Tiempo de paradas | D8: 1 | F8: =1845+890 -> 2735 | H8: =5870+1555 -> 7425 | J8: =6820+1827 -> 8647 | L8: =11960+1544 -> 13504 | N8: =11425+2202 -> 13627 | P8: =13835+1360 -> 15195 | R8: =9785+1446 -> 11231 | T8: =11840+1379 -> 13219 | V8: =13145+2804 -> 15949 | X8: =11175+2238 -> 13413 | Z8: =12325+1507 -> 13832
A10: NOMBRE | B10: FORMULA | C10: META | D10: Año | E10: %
A11: COSTO TOTAL DE MANTENIMIENTO POR FACTURACIÓN | B11: Costo Total de Mto por Facturación | C11: <= 2% de la facturacion | D11: 364832138 | E11: =D11/D12 -> 0.002345811915 | F11: Costo de los proyectos ejecutados en el año necesarios para el mantenimiento de la infraestructura de producción y compras de nuevos equipos.
B12: Facturación Total en el periodo | D12: 155524889126 | F12: Facturación del año 2019 sin incluir impuestos
A16: RESPONSABLE | B16: Profesional Universitario de Mantenimiento

Sheet CONTROL INTERNO
B1: INDUSTRIA LICORERA DEL CAUCA 2019
B2: BALANCE SCORECARD
B3: Código DOPL03 | D3: Versión 04 | J3: Fecha vigencia Julio 16 de 2018 | Q3: Página 5 de 15
A5: CONTROL INTERNO
A6: NOMBRE | B6: FORMULA | C6: META | D6: Ene | E6: % | F6: Feb | G6: % | H6: Mar | I6: % | J6: Abr | K6: % | L6: May | M6: % | N6: Jun | O6: % | P6: Jul | Q6: % | R6: Ago | S6: % | T6: Sep | U6: % | V6: Oct | W6: % | X6: Nov | Y6: % | Z6: Dic | AA6: %
A7: AUDITORIA INTERNA | B7: Numero de auditorías de Control Interno realizadas en el Programa Anual de Auditorias | C7: >=80% | D7: 0 | E7: =D7/$D$8 -> 0 | F7: 0 | H7: 0 | I7: =H7/$D$8 -> 0 | J7: 4 | K7: =J7/$D$8 -> 0.3333333333 | L7: 4 | M7: =L7/$D$8 -> 0.3333333333 | N7: 4 | O7: =N7/$D$8 -> 0.3333333333 | Q7: =P7/$D$8 -> 0 | R7: 0 | S7: =R7/$D$8 -> 0 | T7: 0 | U7: =T7/$D$8 -> 0 | V7: 0 | W7: =V7/$D$8 -> 0 | X7: 0 | Y7: =X7/$D$8 -> 0 | Z7: 0 | AA7: =Z7/$D$8 -> 0
B8: total de auditorías de Control Interno establecidas en el Programadas Anual de Auditorias *100 | D8: 12 | F8: 12 | H8: 12 | J8: 12 | L8: 12 | N8: 12 | P8: 12 | R8: 12 | T8: 12 | V8: 12 | X8: 12 | Z8: 12
A10: NOMBRE | B10: FORMULA | C10: META | D10: 1B | E10: % | F10: 2B | G10: % | H10: 3B | I10: % | J10: 4B | K10: % | L10: 5B | M10: % | N10: 6B | O10: %
A11: ENTES EXTERNOS | B11: Numero de Informes de Ley presentados | C11: 1 | D11: 7 | E11: =D11/D12 -> 1 | F11: 4 | G11: =F11/F12 -> 1 | H11: 0 | I11: =H11/H12 ->  | J11: 4 | K11: =J11/J12 -> 1 | L11: 1 | M11: =L11/L12 -> 0.5 | N11: 2 | O11: =N11/N12 -> 1
B12: Total de Informes de Ley a presentar | D12: 7 | F12: 4 | H12: 0 | J12: 4 | L12: 2 | N12: 2
A14: NOMBRE | B14: FORMULA | C14: META | D14: 1B | E14: % | F14: 2B | G14: % | H14: 3B | I14: % | J14: 4B | K14: % | L14: 5B | M14: % | N14: 6B | O14: %
A15: SIA | B15: Nº de requerimientos publicados | C15: 1 | D15: 4 | E15: =D15/D16 -> 1 | F15: 2 | G15: =F15/F16 -> 1 | H15: 3 | I15: =H15/H16 -> 1 | J15: 3 | K15: =J15/J16 -> 1 | L15: 2 | M15: =L15/L16 -> 1 | N15: 1 | O15: =N15/N16 -> 1
B16: Total de requerimientos en SIA Contralorías | D16: 4 | F16: 2 | H16: 3 | J16: 3 | L16: 2 | N16: 1
A18: NOMBRE | B18: FORMULA | C18: META | D18: 1S | E18: % | F18: 2S | G18: %
A19: PLANES DE MEJORAMIENTO | B19: Nº de Instrumentos adoptados | C19: 1 | D19: 1 | E19: =D19/D20 -> 1 | F19: 1 | G19: =F19/F20 -> 1
B20: Total de Instrumentos del Decreto 648/17 Art. 2.2.21.4.8 | D20: 1 | F20: 1
A22: RESPONSABLE | B22: Jefe Oficina de Control Interno

Sheet GESTIÓN TECNOLOGICA
B1: INDUSTRIA LICORERA DEL CAUCA 2019
B2: BALANCE SCORECARD
B3: Código DOPL03 | E3: Versión 04 | K3: Fecha vigencia Julio 16 de 2018 | R3: Página 8 de 13
A5: GESTIÓN TECNOLOGICA
A6: NOMBRE | B6: FORMULA | C6: META | D6: Ene | E6: % | F6: Feb | G6: % | H6: Mar | I6: % | J6: Abr | K6: % | L6: May | M6: % | N6: Jun | O6: % | P6: Jul | Q6: % | R6: Ago | S6: % | T6: Sep | U6: % | V6: Oct | W6: % | X6: Nov | Y6: % | Z6: Dic | AA6: %
A7: SOPORTE | B7: # de solicitudes soporte | C7: 1 | D7: 63 | E7: =D7/D8 -> 1 | F7: 60 | G7: =F7/F8 -> 1 | H7: 60 | I7: =H7/H8 -> 1 | J7: 60 | K7: =J7/J8 -> 1 | L7: 66 | M7: =L7/L8 -> 1 | N7: 54 | O7: =N7/N8 -> 1 | P7: 66 | Q7: =P7/P8 -> 1 | R7: 60 | S7: =R7/R8 -> 1 | T7: 63 | U7: =T7/T8 -> 1 | V7: 66 | W7: =V7/V8 -> 1 | X7: 57 | Y7: =X7/X8 -> 1 | Z7: 63 | AA7: =Z7/Z8 -> 1
B8: # Total de solicitudes recibidas | D8: 63 | F8: 60 | H8: 60 | J8: 60 | L8: 66 | N8: 54 | P8: 66 | R8: 60 | T8: 63 | V8: 66 | X8: 57 | Z8: 63
A11: RESPONSABLE | B11: Técnico Programador de Sistemas

Sheet COMERCIALIZACIÓN
B1: INDUSTRIA LICORERA DEL CAUCA 2019
B2: BALANCE SCORECARD
B3: Código DOPL03 | E3: Versión 04 | K3: Fecha vigencia Julio 16 de 2018 | R3: Página 9 de 13
A5: COMERCIALIZACIÓN
A6: NOMBRE | B6: FORMULA | C6: META | D6: Ene | E6: % | F6: Feb | G6: % | H6: Mar | I6: % | J6: Abr | K6: % | L6: May | M6: % | N6: Jun | O6: % | P6: Jul | Q6: % | R6: Ago | S6: % | T6: Sep | U6: % | V6: Oct | W6: % | X6: Nov | Y6: % | Z6: Dic | AA6: % | AB6: Año
A7: VENTAS | B7: Número de unidades vendidas | C7: 1 | D7: 0 | E7: =D7/D8 -> 0 | F7: 30079 | G7: =F7/F8 -> 0.0093996875 | H7: 119382 | I7: =H7/H8 -> 0.037306875 | J7: 304696 | K7: =J7/J8 -> 0.0952175 | L7: 522044 | M7: =L7/L8 -> 0.16313875 | N7: 792391 | O7: =N7/N8 -> 0.2476221875 | P7: 1065180 | Q7: =P7/P8 -> 0.33286875 | R7: 1352389 | S7: =R7/R8 -> 0.4226215625 | T7: 1553611 | U7: =T7/T8 -> 0.4855034375 | V7: 1880945 | W7: =V7/V8 -> 0.5877953125 | X7: 2173023 | Y7: =X7/X8 -> 0.6790696875 | Z7: 3205295 | AA7: =Z7/Z8 -> 1.001654688 | AB7: =Z7/Z8 -> 1.001654688
B8: total meta de ventas | D8: 3200000 | F8: 3200000 | H8: 3200000 | J8: 3200000 | L8: 3200000 | N8: 3200000 | P8: 3200000 | R8: 3200000 | T8: 3200000 | V8: 3200000 | X8: 3200000 | Z8: 3200000
A9: NOMBRE | B9: FORMULA | C9: META | D9: Ene | E9: % | F9: Feb | G9: % | H9: Mar | I9: % | J9: Abr | K9: % | L9: May | M9: % | N9: Jun | O9: % | P9: Jul | Q9: % | R9: Ago | S9: % | T9: Sep | U9: % | V9: Oct | W9: % | X9: Nov | Y9: % | Z9: Dic | AA9: % | AB9: Año
A10: RECLAMOS | B10: No. Clientes satisfechos de R | C10: 0.8 | D10: 1 | E10: =D10/D11 -> 1 | F10: 2 | G10: =F10/F11 -> 1 | H10: 6 | I10: =H10/H11 -> 1 | J10: 3 | K10: =J10/J11 -> 1 | L10: 7 | M10: =L10/L11 -> 1 | N10: 3 | O10: =N10/N11 -> 1 | P10: 12 | Q10: =P10/P11 -> 1 | R10: 0 | S10: =R10/R11 ->  | T10: 1 | U10: =T10/T11 -> 1 | V10: 9 | W10: =V10/V11 -> 1 | X10: 10 | Y10: =X10/X11 -> 1 | Z10: 7 | AA10: =Z10/Z11 -> 1 | AB10: 1
B11: No. R presentados. | D11: 1 | F11: 2 | H11: 6 | J11: 3 | L11: 7 | N11: 3 | P11: 12 | R11: 0 | T11: 1 | V11: 9 | X11: 10 | Z11: 7
A12: NOMBRE | B12: FORMULA | C12: META | D12: Ene | E12: % | F12: Feb | G12: % | H12: Mar | I12: % | J12: Abr | K12: % | L12: May | M12: % | N12: Jun | O12: % | P12: Jul | Q12: % | R12: Ago | S12: % | T12: Sep | U12: % | V12: Oct | W12: % | X12: Nov | Y12: % | Z12: Dic | AA12: % | AB12: Año
A13: SATISFACCION | B13: No. Consumidores satisfechos | C13: 0.8 | E13: =D13/D14 ->  | G13: =F13/F14 ->  | I13: =H13/H14 ->  | K13: =J13/J14 ->  | M13: =L13/L14 ->  | N13: 50 | O13: =N13/N14 -> 1 | Q13: =P13/P14 ->  | S13: =R13/R14 ->  | U13: =T13/T14 ->  | W13: =V13/V14 ->  | Y13: =X13/X14 ->  | Z13: 18 | AA13: 0.69 | AB13: 0.89
B14: total consumidores encuestados | N14: 50 | Z14: 26
A17: RESPONSABLE | B17: Jefe División Comercialización

Sheet JURIDICA
B1: INDUSTRIA LICORERA DEL CAUCA 2019
B2: BALANCE SCORECARD
B3: Código DOPL03 | E3: Versión 04 | J3: Fecha vigencia Julio 16 de 2018 | P3: Página 11 de 15
A5: JURIDICA
A6: NOMBRE | B6: FORMULA | C6: META | D6: Ene | E6: % | F6: Feb | G6: % | H6: Mar | I6: % | J6: Abr | K6: % | L6: May | M6: % | N6: Jun | O6: % | P6: Jul | Q6: % | R6: Ago | S6: % | T6: Sep | U6: % | V6: Oct | W6: % | X6: Nov | Y6: % | Z6: Dic | AA6: %
A7: CONTRATOS OPORTUNOS | B7: Número de contratos realizados | C7: 1 | D7: 107 | E7: =D7/D8 -> 1 | F7: 30 | G7: =F7/F8 -> 1 | H7: 18 | I7: =H7/H8 -> 1 | J7: 23 | K7: =J7/J8 -> 1 | L7: 15 | M7: =L7/L8 -> 1 | N7: 46 | O7: =N7/N8 -> 1 | P7: 22 | Q7: 1 | R7: 15 | S7: 1 | T7: 13 | U7: 1 | V7: 30 | W7: 1 | X7: 21 | Y7: 1 | Z7: 5 | AA7: 1
B8: Números de contratos solicitados | D8: 107 | F8: 30 | H8: 18 | J8: 23 | L8: 15 | N8: 46 | P8: 22 | R8: 15 | T8: 13 | V8: 30 | X8: 21 | Z8: 5
A11: RESPONSABLE | B11: Jefe División Juridica

Sheet FINANCIERA
B1: INDUSTRIA LICORERA DEL CAUCA 2019
B2: BALANCE SCORECARD
B3: Código DOPL03 | D3: Versión 04 | I3: Fecha vigencia Julio 16 de 2018 | O3: Página 13 de 13
A5: ADMINISTRATIVA Y FINANCIERA
A6: NOMBRE | B6: FORMULA | C6: META | D6: Ene | E6: % | F6: Feb | G6: % | H6: Mar | I6: % | J6: Abr | K6: % | L6: May | M6: % | N6: Jun | O6: % | P6: Jul | Q6: % | R6: Agos | S6: % | T6: Sep | U6: % | V6: Oct | W6: % | X6: Nov | Y6: % | Z6: Dic | AA6: %
A7: MARGEN OPERACIONAL | B7: Utilidad Operacional | C7: >=17% | E7: =D7/D8 ->  | F7: 1700584 | G7: =F7/F8 -> 4.798839644 | H7: 1914587 | I7: =H7/H8 -> 1.366824058 | J7: 1354209 | K7: =J7/J8 -> 0.3728653723 | L7: 438557 | M7: =L7/L8 -> 0.06971558942 | N7: -165787043 | O7: =N7/N8 -> -0.01692271654 | P7: 454991379 | Q7: =P7/P8 -> 0.03442780681 | R7: 1199972381 | S7: =R7/R8 -> 0.07140994075 | T7: 2061263647 | U7: =T7/T8 -> 0.1068835593 | V7: 3495333473 | W7: =V7/V8 -> 0.1492861055 | X7: 4788252193 | Y7: =X7/X8 -> 0.1761296811 | Z7: 10435529682 | AA7: =+Z7/Z8 -> 0.2607578157
B8: Ingresos Netos | F8: 354374 | H8: 1400756 | J8: 3631898 | L8: 6290659 | N8: 9796715709 | P8: 13215810741 | R8: 16803996312 | T8: 19285132907 | V8: 23413655687 | X8: 27185947104 | Z8: 40020007277
A11: RESPONSABLE | B11: Jefe División Financiera.

Sheet CONTROL DE CALIDAD
B1: INDUSTRIA LICORERA DEL CAUCA 2019
B2: BALANCE SCORECARD
B3: Código DOPL03 | D3: Versión 04 | J3: Fecha vigencia Julio 16 de 2018 | P3: Página 15 de 13
A5: CONTROL DE CALIDAD
A6: NOMBRE | B6: FORMULA | C6: META | E6: % | F6: Feb | G6: % | H6: Mar | I6: % | J6: Abr | K6: % | L6: May | M6: % | N6: Jun | O6: % | P6: Jul | Q6: % | R6: Ago | S6: % | T6: Sep | U6: % | V6: Oct | W6: % | X6: Nov | Y6: % | Z6: Dic | AA6: %
A7: RECLAMOS ATENDIDOS | B7: Concepto tecnico | C7: 1 | D7: 1 | E7: =D7/D8 -> 1 | F7: 4 | G7: =F7/F8 -> 1 | H7: 4 | I7: =H7/H8 -> 1 | J7: 4 | K7: =J7/J8 -> 1 | L7: 8 | M7: =L7/L8 -> 1 | N7: 2 | O7: =N7/N8 -> 1 | P7: 9 | Q7: =P7/P8 -> 1 | R7: 0 | S7: =R7/R8 ->  | T7: 5 | U7: =T7/T8 -> 1 | V7: 15 | W7: =V7/V8 -> 1 | X7: 4 | Y7: =X7/X8 -> 1 | Z7: 5 | AA7: =Z7/Z8 -> 1
B8: Total reclamos recibidos en el mes | D8: 1 | F8: 4 | H8: 4 | J8: 4 | L8: 8 | N8: 2 | P8: 9 | R8: 0 | T8: 5 | V8: 15 | X8: 4 | Z8: 5
A9: NOMBRE | B9: FORMULA | C9: META | D9: Ene | E9: % | F9: Feb | G9: % | H9: Mar | I9: % | J9: Abr | K9: % | L9: May | M9: % | N9: Jun | O9: % | P9: Jul | Q9: % | R9: Ago | S9: % | T9: Sep | U9: % | V9: Oct | W9: % | X9: Nov | Y9: % | Z9: Dic | AA9: %
A10: PRODUCTOS NO CONFORMES | B10: Numero De Productos no conformes | C10: <=3% | D10: 0 | E10: 0 | F10: 679 | G10: =F10/F11 -> 0.07672316384 | H10: 961 | I10: =H10/H11 -> 0.009784755737 | J10: 1736 | K10: =J10/J11 -> 0.008987181877 | L10: 968 | M10: =L10/L11 -> 0.003183875382 | N10: 994 | O10: =N10/N11 -> 0.002144274743 | P10: 1621 | Q10: =P10/P11 -> 0.002847066345 | R10: 1074 | S10: =R10/R11 -> 0.002480186222 | T10: 735 | U10: =T10/T11 -> 0.001590248209 | V10: 1235 | W10: =V10/V11 -> 0.002025499979 | X10: 4064 | Y10: =X10/X11 -> 0.008986060992 | Z10: 1309 | AA10: =Z10/Z11 -> 0.003073159508
B11: Lotes de PT | D11: 0 | F11: 8850 | H11: 98214 | J11: 193164 | L11: 304032 | N11: 463560 | P11: 569358 | R11: 433032 | T11: 462192 | V11: 609726 | X11: 452256 | Z11: 425946
A14: RESPONSABLE | B14: Profesional Universitario Control Calidad
B22: Incremento en el porcentaje debido a el mantenimiento, ajustes y ensayo de los equipos de la linea
B23: no se recepciono reclamos
B26: No se recepcionaron reclamos en ese periodo de tiempo
